[Event "Championnat du monde jeunes U12"]
[Date "2024.11.19"]
[White "Bocquenet-Drouode, Hugo"]
[Black "Aansh Nandan Nerurkar"]
[WhiteElo "2002"]
[BlackElo "2247"]
[Round "5.7"]
[Result "1/2-1/2"]
[TimeControl "5400+30"]

1. e4 {[%clk 1:30:57]} 1... c5 {[%clk 1:30:57]} 2. Nf3 {[%clk 1:31:23]} 2... d6
{[%clk 1:31:21]} 3. Bb5+ {[%clk 1:31:48]} 3... Nd7 {[%clk 1:31:26]} 4. Ba4
{[%clk 1:32:11]} 4... Nf6 {[%clk 1:31:36]} 5. O-O {[%clk 1:32:21]} 5... g6
{[%clk 1:26:22]} 6. d3 {[%clk 1:32:19]} 6... Bg7 {[%clk 1:26:46]} 7. c4 {[%clk
1:32:37]} 7... O-O {[%clk 1:27:06]} 8. h3 {[%clk 1:32:36]} 8... a6 {[%clk
1:26:14]} 9. Nc3 {[%clk 1:32:51]} 9... Rb8 {[%clk 1:24:04]} 10. Be3 {[%clk
1:31:08]} 10... Ne8 {[%clk 1:22:08]} 11. d4 {[%clk 1:30:01]} 11... cxd4 {[%clk
1:22:30]} 12. Bxd4 {[%clk 1:30:01]} 12... Nc7 {[%clk 1:22:27]} 13. Ba7 {[%clk
1:22:39]} 13... Ra8 {[%clk 1:21:42]} 14. Bd4 {[%clk 1:23:02]} 14... Bxd4 {[%clk
1:20:17]} 15. Nxd4 {[%clk 1:22:55]} 15... Ne5 {[%clk 1:19:02]} 16. Qe2 {[%clk
1:19:00]} 16... Bd7 {[%clk 1:13:26]} 17. Bxd7 {[%clk 1:18:42]} 17... Qxd7 {[%clk
1:13:16]} 18. a4 {[%clk 1:16:18]} 18... Rac8 {[%clk 1:08:01]} 19. b3 {[%clk
1:12:52]} 19... Ne6 {[%clk 1:07:31]} 20. Rad1 {[%clk 1:10:50]} 20... Nc6 {[%clk
1:06:03]} 21. Nxe6 {[%clk 1:07:42]} 21... Qxe6 {[%clk 1:06:12]} 22. f4 {[%clk
1:04:25]} 22... f5 {[%clk 1:04:35]} 23. Rfe1 {[%clk 0:59:30]} 23... fxe4 {[%clk
1:05:03]} 24. Qxe4 {[%clk 0:59:51]} 24... Qxe4 {[%clk 1:05:28]} 25. Rxe4 {[%clk
1:00:14]} 25... Kf7 {[%clk 1:05:10]} 26. g3 {[%clk 0:53:40]} 26... Rfe8 {[%clk
1:04:57]} 27. Re2 {[%clk 0:51:45]} 27... h6 {[%clk 1:03:32]} 28. h4 {[%clk
0:46:34]} 28... Na5 {[%clk 1:02:26]} 29. Rb2 {[%clk 0:44:27]} 29... Red8 {[%clk
0:59:40]} 30. Ne4 {[%clk 0:33:39]} 30... b6 {[%clk 0:57:47]} 31. Rd3 {[%clk
0:29:17]} 31... Nb7 {[%clk 0:56:47]} 32. Re2 {[%clk 0:28:35]} 32... e6 {[%clk
0:55:11]} 33. Red2 {[%clk 0:25:45]} 33... Ke7 {[%clk 0:54:31]} 34. Re3 {[%clk
0:21:21]} 34... Rd7 {[%clk 0:47:33]} 35. Nc3 {[%clk 0:20:50]} 35... Kf7 {[%clk
0:47:57]} 36. Rde2 {[%clk 0:20:27]} 36... Nd8 {[%clk 0:48:17]} 37. Rd2 {[%clk
0:11:13]} 37... Rc6 {[%clk 0:47:57]} 38. Ne2 {[%clk 0:09:43]} 38... Rc5 {[%clk
0:46:49]} 39. Nd4 {[%clk 0:09:13]} 39... Kf6 {[%clk 0:44:35]} 40. Nf3 {[%clk
0:08:26]} 40... Nc6 {[%clk 0:43:31]} 41. Nd4 {[%clk 0:06:16]} 41... Nxd4 {[%clk
0:43:52]} 42. Rxd4 {[%clk 0:06:42]} 42... d5 {[%clk 0:43:17]} 43. Kf2 {[%clk
0:06:28]} 43... Rdc7 {[%clk 0:43:12]} 44. cxd5 {[%clk 0:06:52]} 44... Rxd5
{[%clk 0:41:20]} 45. Rxd5 {[%clk 0:07:00]} 45... exd5 {[%clk 0:41:49]} 46. Rd3
{[%clk 0:06:49]} 46... Ke6 {[%clk 0:39:11]} 47. Ke3 {[%clk 0:06:49]} 47... Rc1
{[%clk 0:39:12]} 48. Kf3 {[%clk 0:04:43]} 48... h5 {[%clk 0:37:14]} 49. Ke3
{[%clk 0:04:16]} 49... a5 {[%clk 0:35:24]} 50. Kd2 {[%clk 0:04:00]} 50... Rg1
{[%clk 0:35:11]} 51. Kc3 {[%clk 0:03:31]} 51... Rc1+ {[%clk 0:32:39]} 52. Kd2
{[%clk 0:03:53]} 52... Rb1 {[%clk 0:32:39]} 53. Kc2 {[%clk 0:04:07]} 53... Rg1
{[%clk 0:33:01]} 54. Kc3 {[%clk 0:04:06]} 54... Kd6 {[%clk 0:33:09]} 55. Kd4
{[%clk 0:04:06]} 55... Rf1 {[%clk 0:28:12]} 56. Re3 {[%clk 0:02:39]} 56... Rd1+
{[%clk 0:23:05]} 57. Rd3 {[%clk 0:03:05]} 57... Rb1 {[%clk 0:22:49]} 58. Re3
{[%clk 0:02:34]} 58... Rg1 {[%clk 0:22:55]} 59. Re5 {[%clk 0:01:21]} 59... Rxg3
{[%clk 0:22:38]} 60. Rxd5+ {[%clk 0:01:48]} 60... Kc6 {[%clk 0:23:02]} 61. Rg5
{[%clk 0:01:35]} 61... Rxg5 {[%clk 0:23:31]} 62. fxg5 {[%clk 0:01:52]} 62... Kd6
{[%clk 0:23:49]} 63. Kc4 {[%clk 0:02:14]} 63... Kc6 {[%clk 0:23:09]} 64. b4
{[%clk 0:02:38]} 64... axb4 {[%clk 0:23:35]} 65. Kxb4 {[%clk 0:03:02]} 65... Kc7
{[%clk 0:23:38]} 66. Kc4 {[%clk 0:03:17]} 66... Kc6 {[%clk 0:24:03]} 67. Kb4
{[%clk 0:03:41]} 67... Kc7 {[%clk 0:24:27]} 68. Kb5 {[%clk 0:04:08]} 68... Kb7
{[%clk 0:24:53]} 69. Kc4 {[%clk 0:04:30]} 69... Kc6 {[%clk 0:25:20]} 70. Kd4
{[%clk 0:04:45]} 70... Kd6 {[%clk 0:25:46]} 71. Ke4 1/2-1/2

[Variant "Standard"]
[Site "Europe Echecs"]

[Event "Championnat du monde jeunes U12"]
[Date "2024.11.19"]
[White "Batbaatar, Baatar"]
[Black "Huseynov, Ahmed"]
[WhiteElo "2030"]
[BlackElo "1886"]
[Round "5.23"]
[Result "1-0"]
[TimeControl "5400+30"]

1. e4 {[%clk 1:30:59]} 1... e6 {[%clk 1:30:54]} 2. d4 {[%clk 1:31:24]} 2... d5
{[%clk 1:31:20]} 3. Nc3 {[%clk 1:31:48]} 3... Bb4 {[%clk 1:31:41]} 4. Ne2 {[%clk
1:32:12]} 4... Nf6 {[%clk 1:30:41]} 5. e5 {[%clk 1:31:09]} 5... Nfd7 {[%clk
1:31:03]} 6. a3 {[%clk 1:31:12]} 6... Be7 {[%clk 1:31:27]} 7. f4 {[%clk
1:28:27]} 7... g6 {[%clk 1:31:09]} 8. Be3 {[%clk 1:26:41]} 8... c5 {[%clk
1:31:17]} 9. Qd2 {[%clk 1:26:34]} 9... Nc6 {[%clk 1:30:32]} 10. dxc5 {[%clk
1:26:03]} 10... Qa5 {[%clk 1:16:46]} 11. Nd4 {[%clk 1:23:29]} 11... Bxc5 {[%clk
1:12:15]} 12. O-O-O {[%clk 1:15:37]} 12... a6 {[%clk 1:05:57]} 13. Kb1 {[%clk
0:59:15]} 13... Nxd4 {[%clk 1:00:31]} 14. Bxd4 {[%clk 0:57:55]} 14... Bxd4
{[%clk 1:00:08]} 15. Qxd4 {[%clk 0:58:11]} 15... Qc5 {[%clk 0:51:34]} 16. Qxc5
{[%clk 0:54:46]} 16... Nxc5 {[%clk 0:51:57]} 17. Bd3 {[%clk 0:55:08]} 17... b5
{[%clk 0:45:39]} 18. b4 {[%clk 0:49:49]} 18... Nd7 {[%clk 0:45:43]} 19. Ne2
{[%clk 0:49:54]} 19... Nb6 {[%clk 0:35:42]} 20. g4 {[%clk 0:42:30]} 20... Ke7
{[%clk 0:28:38]} 21. Nd4 {[%clk 0:38:12]} 21... Bd7 {[%clk 0:24:12]} 22. Rdf1
{[%clk 0:29:25]} 22... Rhc8 {[%clk 0:22:28]} 23. h4 {[%clk 0:21:20]} 23... Rc3
{[%clk 0:11:55]} 24. h5 {[%clk 0:17:27]} 24... Rxa3 {[%clk 0:08:52]} 25. f5
{[%clk 0:11:33]} 25... gxf5 {[%clk 0:07:46]} 26. gxf5 {[%clk 0:07:28]} 26... Nc4
{[%clk 0:07:35]} 27. f6+ {[%clk 0:04:58]} 27... Kd8 {[%clk 0:07:53]} 28. Rfg1
{[%clk 0:05:07]} 28... h6 {[%clk 0:03:55]} 29. Rg8+ {[%clk 0:05:13]} 29... Be8
{[%clk 0:04:21]} 30. Nxe6+ {[%clk 0:05:29]} 30... Kd7 {[%clk 0:03:55]} 31. Ng7
{[%clk 0:05:12]} 31... Nxe5 {[%clk 0:01:19]} 32. Bf5+ {[%clk 0:05:28]} 32... Kc6
{[%clk 0:01:45]} 33. Re1 {[%clk 0:03:41]} 33... Nc4 {[%clk 0:00:42]} 34. Rexe8
{[%clk 0:03:35]} 34... Nd2+ {[%clk 0:00:37]} 35. Kc1 {[%clk 0:03:56]} 35... Nc4
{[%clk 0:01:03]} 36. Kd1 {[%clk 0:03:53]} 36... Ra7 {[%clk 0:00:48]} 37. Re7
{[%clk 0:03:14]} 37... Rc7 {[%clk 0:00:35]} 38. Bd3 {[%clk 0:01:09]} 38... Nb2+
{[%clk 0:00:31]} 39. Ke2 {[%clk 0:01:26]} 39... Nxd3 {[%clk 0:00:53]} 40. cxd3
{[%clk 0:01:54]} 40... Ra2+ {[%clk 0:01:12]} 41. Ke3 {[%clk 0:01:29]} 41... Ra1
{[%clk 0:01:34]} 42. Rxc7+ {[%clk 0:01:50]} 42... Kxc7 {[%clk 0:02:00]} 43. Rf8
{[%clk 0:02:15]} 1-0

[Variant "Standard"]
[Site "Europe Echecs"]

[Event "Championnat du monde jeunes U12"]
[Date "2024.11.19"]
[White "Wijerathna, Vinuka Dihain"]
[Black "Fadeev, Justin Michael"]
[WhiteElo "2004"]
[BlackElo "1878"]
[Round "5.26"]
[Result "1-0"]
[TimeControl "5400+30"]

1. e4 {[%clk 1:30:57]} 1... e6 {[%clk 1:30:53]} 2. d4 {[%clk 1:31:18]} 2... d5
{[%clk 1:31:19]} 3. Nc3 {[%clk 1:31:43]} 3... Bb4 {[%clk 1:31:46]} 4. exd5
{[%clk 1:32:06]} 4... exd5 {[%clk 1:32:10]} 5. Bd3 {[%clk 1:32:29]} 5... Ne7
{[%clk 1:32:09]} 6. Qh5 {[%clk 1:32:29]} 6... h6 {[%clk 1:15:01]} 7. Ne2 {[%clk
1:30:46]} 7... Nd7 {[%clk 1:11:57]} 8. h3 {[%clk 1:21:55]} 8... Nf6 {[%clk
1:09:05]} 9. Qf3 {[%clk 1:22:18]} 9... Nc6 {[%clk 1:06:09]} 10. O-O {[%clk
1:21:35]} 10... O-O {[%clk 1:06:25]} 11. a3 {[%clk 1:19:17]} 11... Ba5 {[%clk
1:02:54]} 12. b4 {[%clk 1:10:13]} 12... Bb6 {[%clk 1:03:09]} 13. Be3 {[%clk
1:10:31]} 13... a6 {[%clk 0:59:36]} 14. Rad1 {[%clk 1:08:36]} 14... Be6 {[%clk
0:56:43]} 15. Rfe1 {[%clk 1:04:24]} 15... Na7 {[%clk 0:53:00]} 16. Nf4 {[%clk
0:55:35]} 16... Nc8 {[%clk 0:47:00]} 17. Qg3 {[%clk 0:50:27]} 17... Kh8 {[%clk
0:41:25]} 18. Nxe6 {[%clk 0:38:20]} 18... fxe6 {[%clk 0:41:43]} 19. Ne2 {[%clk
0:38:46]} 19... c6 {[%clk 0:30:53]} 20. Bf4 {[%clk 0:35:39]} 20... Ne7 {[%clk
0:24:46]} 21. Be5 {[%clk 0:30:21]} 21... Nf5 {[%clk 0:20:53]} 22. Bxf5 {[%clk
0:28:42]} 22... exf5 {[%clk 0:21:11]} 23. Nf4 {[%clk 0:29:07]} 23... Rf7 {[%clk
0:16:56]} 24. Qg6 {[%clk 0:26:30]} 24... Qd7 {[%clk 0:15:28]} 25. Rd3 {[%clk
0:24:44]} 25... Re8 {[%clk 0:12:27]} 26. Rde3 {[%clk 0:22:32]} 26... Ne4 {[%clk
0:01:26]} 27. Qxh6+ {[%clk 0:20:54]} 27... Kg8 {[%clk 0:01:42]} 28. Qh5 {[%clk
0:12:06]} 28... Bc7 {[%clk 0:01:09]} 29. Ng6 {[%clk 0:12:04]} 29... Rfe7 {[%clk
0:01:05]} 30. Qh8+ {[%clk 0:12:24]} 30... Kf7 {[%clk 0:01:30]} 31. Qxg7+ {[%clk
0:12:51]} 31... Ke6 {[%clk 0:01:54]} 32. Nf4# {[%clk 0:13:19]} 1-0

[Variant "Standard"]
[Site "Europe Echecs"]

[Event "Championnat du monde jeunes U12"]
[Date "2024.11.19"]
[White "Nguyen, Khoi"]
[Black "Mai, Duc Kien"]
[WhiteElo "1994"]
[BlackElo "1771"]
[Round "5.36"]
[Result "1/2-1/2"]
[TimeControl "5400+30"]

1. c4 {[%clk 1:30:58]} 1... Nf6 {[%clk 1:30:46]} 2. g3 {[%clk 1:31:17]} 2... g6
{[%clk 1:30:59]} 3. Bg2 {[%clk 1:30:20]} 3... d5 {[%clk 1:30:39]} 4. cxd5 {[%clk
1:30:37]} 4... Nxd5 {[%clk 1:31:02]} 5. Qb3 {[%clk 1:28:53]} 5... Nb6 {[%clk
1:30:32]} 6. Qc3 {[%clk 1:28:49]} 6... Rg8 {[%clk 1:24:35]} 7. Nf3 {[%clk
1:26:25]} 7... Bg7 {[%clk 1:21:37]} 8. d4 {[%clk 1:23:34]} 8... Nc6 {[%clk
1:20:19]} 9. e3 {[%clk 1:22:47]} 9... Be6 {[%clk 1:11:25]} 10. O-O {[%clk
1:19:48]} 10... Qd7 {[%clk 1:09:52]} 11. Rd1 {[%clk 1:18:23]} 11... O-O-O {[%clk
1:04:50]} 12. Qc2 {[%clk 0:59:15]} 12... Bh3 {[%clk 0:50:22]} 13. Nc3 {[%clk
0:55:08]} 13... Bxg2 {[%clk 0:50:39]} 14. Kxg2 {[%clk 0:55:36]} 14... Bf6 {[%clk
0:43:24]} 15. Qb3 {[%clk 0:43:29]} 15... e6 {[%clk 0:31:37]} 16. e4 {[%clk
0:33:41]} 16... g5 {[%clk 0:24:20]} 17. e5 {[%clk 0:26:42]} 17... g4 {[%clk
0:22:15]} 18. Ng1 {[%clk 0:26:30]} 18... Be7 {[%clk 0:17:47]} 19. Nge2 {[%clk
0:26:48]} 19... h5 {[%clk 0:15:26]} 20. Be3 {[%clk 0:25:05]} 20... h4 {[%clk
0:15:14]} 21. Nf4 {[%clk 0:24:17]} 21... h3+ {[%clk 0:15:20]} 22. Kg1 {[%clk
0:24:36]} 22... Bg5 {[%clk 0:14:59]} 23. Ne4 {[%clk 0:23:48]} 23... Bxf4 {[%clk
0:13:05]} 24. Nf6 {[%clk 0:24:12]} 24... Qe7 {[%clk 0:13:29]} 25. Nxg8 {[%clk
0:24:33]} 25... Rxg8 {[%clk 0:13:55]} 26. Bxf4 {[%clk 0:23:58]} 26... Nd5 {[%clk
0:14:16]} 27. Qc2 {[%clk 0:20:00]} 27... f5 {[%clk 0:05:41]} 28. a3 {[%clk
0:16:53]} 28... Qf7 {[%clk 0:05:21]} 29. Qd2 1/2-1/2

[Variant "Standard"]
[Site "Europe Echecs"]

[Event "Championnat du monde jeunes U12"]
[Date "2024.11.20"]
[White "Lacan Rus, David"]
[Black "Radzimski, Antoni"]
[WhiteElo "2274"]
[BlackElo "2188"]
[Round "6.1"]
[Result "0-1"]
[TimeControl "5400+30"]

1. d4 {[%clk 1:31:00]} 1... Nf6 {[%clk 1:30:47]} 2. c4 {[%clk 1:31:26]} 2... e6
{[%clk 1:31:01]} 3. Nc3 {[%clk 1:31:51]} 3... Bb4 {[%clk 1:31:26]} 4. f3 {[%clk
1:32:18]} 4... O-O {[%clk 1:30:54]} 5. a3 {[%clk 1:32:42]} 5... Bxc3+ {[%clk
1:31:19]} 6. bxc3 {[%clk 1:33:11]} 6... Ne8 {[%clk 1:31:42]} 7. e4 {[%clk
1:20:08]} 7... b6 {[%clk 1:31:59]} 8. Bd3 {[%clk 1:19:23]} 8... Nc6 {[%clk
1:31:45]} 9. f4 {[%clk 1:15:20]} 9... Ba6 10. Nf3 {[%clk 1:13:42]} 10... Na5
{[%clk 1:21:04]} 11. Qe2 {[%clk 1:11:55]} 11... c5 {[%clk 1:15:47]} 12. Be3
{[%clk 1:02:37]} 12... Rc8 {[%clk 1:06:47]} 13. Nd2 {[%clk 0:58:51]} 13... f5
{[%clk 1:02:32]} 14. e5 {[%clk 0:48:54]} 14... d5 {[%clk 0:52:26]} 15. dxc5
{[%clk 0:47:59]} 15... dxc4 {[%clk 0:50:07]} 16. Bc2 {[%clk 0:39:44]} 16... Nc7
{[%clk 0:44:48]} 17. Nf3 {[%clk 0:33:41]} 17... Nd5 {[%clk 0:43:15]} 18. Nd4
{[%clk 0:32:29]} 18... Qe7 {[%clk 0:41:45]} 19. cxb6 {[%clk 0:31:49]} 19... Nxc3
{[%clk 0:29:33]} 20. Qd2 {[%clk 0:32:02]} 20... Nd5 {[%clk 0:29:58]} 21. Qxa5
{[%clk 0:23:15]} 21... Nxe3 {[%clk 0:30:23]} 22. Qxa6 {[%clk 0:23:09]} 22... Qc5
{[%clk 0:27:05]} 23. b7 {[%clk 0:12:46]} 23... Rcd8 {[%clk 0:25:07]} 24. Qxe6+
{[%clk 0:10:55]} 24... Kh8 {[%clk 0:25:08]} 25. b8=Q {[%clk 0:05:01]} 25... Rxb8
{[%clk 0:24:48]} 26. Rd1 {[%clk 0:04:30]} 26... Nxd1 {[%clk 0:24:22]} 27. Qd6
{[%clk 0:03:24]} 27... Qa5+ {[%clk 0:22:55]} 28. Kxd1 {[%clk 0:03:08]} 28...
Rfd8 {[%clk 0:22:59]} 29. Nxf5 {[%clk 0:01:27]} 29... Rxd6+ {[%clk 0:23:13]} 0-1

[Variant "Standard"]
[Site "Europe Echecs"]

[Event "Championnat du monde jeunes U12"]
[Date "2024.11.20"]
[White "Golis, Wiktor"]
[Black "Abdsattar, Alisher"]
[WhiteElo "2343"]
[BlackElo "2082"]
[Round "6.2"]
[Result "1-0"]
[TimeControl "5400+30"]

1. d4 {[%clk 1:30:57]} 1... Nf6 {[%clk 1:30:53]} 2. c4 {[%clk 1:31:22]} 2... g6
{[%clk 1:31:19]} 3. Nc3 {[%clk 1:31:42]} 3... Bg7 {[%clk 1:31:32]} 4. e4 {[%clk
1:32:01]} 4... d6 {[%clk 1:31:48]} 5. Be2 {[%clk 1:32:18]} 5... O-O {[%clk
1:31:53]} 6. Be3 {[%clk 1:32:41]} 6... c5 {[%clk 1:31:27]} 7. d5 {[%clk
1:32:53]} 7... e6 {[%clk 1:31:40]} 8. Nf3 {[%clk 1:33:07]} 8... exd5 {[%clk
1:31:17]} 9. cxd5 {[%clk 1:33:25]} 9... b5 {[%clk 1:23:37]} 10. e5 {[%clk
1:33:11]} 10... Ng4 {[%clk 1:10:42]} 11. Bg5 {[%clk 1:25:32]} 11... Qb6 {[%clk
1:07:33]} 12. exd6 {[%clk 1:10:36]} 12... b4 {[%clk 1:04:30]} 13. Ne4 {[%clk
1:09:06]} 13... f5 {[%clk 0:35:39]} 14. Ned2 {[%clk 1:08:06]} 14... Bxb2 {[%clk
0:34:03]} 15. Rb1 {[%clk 1:01:03]} 15... Bf6 {[%clk 0:25:50]} 16. Nc4 {[%clk
0:59:43]} 16... Qd8 {[%clk 0:25:54]} 17. Bf4 {[%clk 0:41:19]} 17... Ba6 {[%clk
0:19:46]} 18. O-O {[%clk 0:39:34]} 18... Nd7 {[%clk 0:16:31]} 19. h3 {[%clk
0:32:26]} 19... Bxc4 {[%clk 0:16:40]} 20. Bxc4 {[%clk 0:32:52]} 20... Nge5
{[%clk 0:17:02]} 21. Bb5 {[%clk 0:33:11]} 21... Rb8 {[%clk 0:13:15]} 22. Bc6
{[%clk 0:30:15]} 22... g5 {[%clk 0:09:33]} 23. Bxe5 {[%clk 0:25:59]} 23... Nxe5
{[%clk 0:10:00]} 24. Nxe5 {[%clk 0:26:22]} 24... Bxe5 {[%clk 0:10:27]} 25. d7
{[%clk 0:26:41]} 25... Qf6 {[%clk 0:05:53]} 26. Qe2 {[%clk 0:15:57]} 26... f4
{[%clk 0:04:48]} 27. Qf3 {[%clk 0:11:50]} 27... c4 {[%clk 0:04:13]} 28. Rfe1
{[%clk 0:12:09]} 28... Bc7 {[%clk 0:02:41]} 29. Re4 {[%clk 0:09:23]} 29... c3
{[%clk 0:02:51]} 30. Rbe1 {[%clk 0:09:00]} 30... a5 {[%clk 0:02:07]} 31. Ba4
{[%clk 0:08:11]} 31... Rbd8 {[%clk 0:02:11]} 32. Re7 {[%clk 0:06:18]} 32... Qf5
{[%clk 0:01:48]} 33. R1e2 {[%clk 0:05:18]} 33... Rf7 {[%clk 0:01:17]} 34. d6
{[%clk 0:04:07]} 34... Bxd6 {[%clk 0:01:06]} 35. Re8+ {[%clk 0:04:32]} 35... Rf8
{[%clk 0:01:32]} 36. Rxd8 {[%clk 0:04:56]} 36... Rxd8 {[%clk 0:01:43]} 37. Re8+
{[%clk 0:05:25]} 37... Qf8 {[%clk 0:01:26]} 38. Qd5+ {[%clk 0:05:29]} 38... Kg7
{[%clk 0:01:40]} 39. Qxg5+ {[%clk 0:05:41]} 1-0

[Variant "Standard"]
[Site "Europe Echecs"]

[Event "Championnat du monde jeunes U12"]
[Date "2024.11.20"]
[White "Smirnov, Mark"]
[Black "Tatvidze, Davit"]
[WhiteElo "2300"]
[BlackElo "2024"]
[Round "6.3"]
[Result "1-0"]
[TimeControl "5400+30"]

1. e4 {[%clk 1:30:57]} 1... c5 {[%clk 1:30:57]} 2. Nf3 {[%clk 1:31:23]} 2... Nc6
{[%clk 1:31:23]} 3. Bb5 {[%clk 1:31:47]} 3... Nf6 {[%clk 1:31:47]} 4. Bxc6
{[%clk 1:31:32]} 4... dxc6 {[%clk 1:31:56]} 5. d3 {[%clk 1:31:53]} 5... Qc7
{[%clk 1:31:28]} 6. b3 {[%clk 1:31:56]} 6... e5 {[%clk 1:23:44]} 7. Bb2 {[%clk
1:32:09]} 7... Nd7 {[%clk 1:20:59]} 8. Nbd2 {[%clk 1:29:56]} 8... Be7 {[%clk
1:14:41]} 9. Nc4 {[%clk 1:26:27]} 9... f6 {[%clk 1:13:20]} 10. a4 {[%clk
1:20:42]} 10... O-O {[%clk 1:01:53]} 11. h4 {[%clk 1:19:57]} 11... Nb6 {[%clk
0:56:39]} 12. Ne3 {[%clk 1:19:23]} 12... Be6 {[%clk 0:56:52]} 13. h5 {[%clk
1:17:05]} 13... Nc8 {[%clk 0:56:16]} 14. Nh4 {[%clk 1:11:22]} 14... Nd6 {[%clk
0:35:42]} 15. Qf3 {[%clk 1:10:08]} 15... Rfd8 {[%clk 0:26:36]} 16. Qg3 {[%clk
0:55:36]} 16... Kf8 {[%clk 0:17:17]} 17. O-O {[%clk 0:49:24]} 17... Rd7 {[%clk
0:08:41]} 18. f4 {[%clk 0:48:25]} 18... exf4 {[%clk 0:07:20]} 19. Rxf4 {[%clk
0:47:37]} 19... Ne8 {[%clk 0:05:39]} 20. e5 {[%clk 0:43:43]} 20... Kg8 {[%clk
0:05:07]} 21. Nef5 {[%clk 0:39:21]} 21... fxe5 {[%clk 0:00:49]} 22. Bxe5 {[%clk
0:38:04]} 22... Qxe5 {[%clk 0:00:45]} 23. Nxe7+ {[%clk 0:37:56]} 23... Rxe7
{[%clk 0:01:11]} 24. Rf8+ {[%clk 0:38:19]} 24... Kxf8 {[%clk 0:01:39]} 25. Qxe5
{[%clk 0:38:41]} 25... b6 {[%clk 0:00:36]} 26. Re1 {[%clk 0:38:15]} 26... Nc7
{[%clk 0:00:37]} 27. Nf5 {[%clk 0:36:52]} 27... Rd7 {[%clk 0:00:44]} 28. h6
{[%clk 0:36:57]} 28... Kg8 {[%clk 0:00:34]} 29. Nxg7 {[%clk 0:37:17]} 29... Bf7
{[%clk 0:00:41]} 30. Nf5 {[%clk 0:35:14]} 30... Ne6 {[%clk 0:00:48]} 31. Qf6
{[%clk 0:34:54]} 31... Re8 {[%clk 0:00:42]} 32. Ng7 {[%clk 0:35:15]} 1-0

[Variant "Standard"]
[Site "Europe Echecs"]

[Event "Championnat du monde jeunes U12"]
[Date "2024.11.20"]
[White "Petroff, Vlad"]
[Black "Negrean, Andrei"]
[WhiteElo "2079"]
[BlackElo "2255"]
[Round "6.4"]
[Result "0-1"]
[TimeControl "5400+30"]

1. e4 {[%clk 1:30:52]} 1... c5 {[%clk 1:30:49]} 2. Nf3 {[%clk 1:31:04]} 2... Nc6
{[%clk 1:30:37]} 3. Bb5 {[%clk 1:31:03]} 3... g6 {[%clk 1:30:08]} 4. Bxc6 {[%clk
1:30:24]} 4... dxc6 {[%clk 1:29:51]} 5. d3 {[%clk 1:29:51]} 5... Qc7 {[%clk
1:27:21]} 6. O-O {[%clk 1:29:32]} 6... e5 {[%clk 1:26:43]} 7. Be3 {[%clk
1:28:39]} 7... Nf6 {[%clk 1:26:03]} 8. Qe1 {[%clk 1:28:06]} 8... Bd6 {[%clk
1:09:34]} 9. Qc3 {[%clk 1:20:19]} 9... b6 {[%clk 1:07:11]} 10. Bh6 {[%clk
1:17:05]} 10... Ng4 {[%clk 1:02:24]} 11. Bg5 {[%clk 1:15:38]} 11... f6 {[%clk
0:59:19]} 12. Be3 {[%clk 1:03:14]} 12... Be6 {[%clk 0:54:49]} 13. a3 {[%clk
1:01:31]} 13... a5 {[%clk 0:52:33]} 14. Nbd2 {[%clk 0:57:46]} 14... Nxe3 {[%clk
0:45:59]} 15. fxe3 {[%clk 0:58:14]} 15... O-O {[%clk 0:45:38]} 16. a4 {[%clk
0:46:52]} 16... Rfd8 {[%clk 0:38:41]} 17. h3 {[%clk 0:40:35]} 17... c4 {[%clk
0:36:29]} 18. dxc4 {[%clk 0:38:11]} 18... Bb4 {[%clk 0:36:46]} 19. Qb3 {[%clk
0:38:24]} 19... Bxd2 {[%clk 0:36:56]} 20. Nxd2 {[%clk 0:38:47]} 20... Rxd2
{[%clk 0:37:21]} 21. Rxf6 {[%clk 0:39:08]} 21... Qe7 {[%clk 0:30:15]} 22. Raf1
{[%clk 0:38:14]} 22... Rad8 {[%clk 0:26:10]} 23. Qc3 {[%clk 0:33:38]} 23... Bf5
{[%clk 0:25:44]} 24. R6xf5 {[%clk 0:30:47]} 24... gxf5 {[%clk 0:26:04]} 25. Rxf5
{[%clk 0:30:54]} 25... Qg7 {[%clk 0:25:32]} 26. g4 {[%clk 0:30:56]} 26... Qh6
{[%clk 0:24:05]} 27. Rh5 {[%clk 0:29:34]} 27... Qf6 {[%clk 0:24:21]} 28. Rf5
{[%clk 0:29:53]} 28... Qh4 {[%clk 0:24:11]} 29. Qxe5 {[%clk 0:29:52]} 29... Qe1+
{[%clk 0:24:37]} 30. Rf1 {[%clk 0:30:15]} 30... Qxe3+ {[%clk 0:25:03]} 31. Kh1
{[%clk 0:30:41]} 31... Qxh3+ {[%clk 0:25:29]} 32. Kg1 {[%clk 0:31:08]} 32...
Qg2# {[%clk 0:25:51]} 0-1

[Variant "Standard"]
[Site "Europe Echecs"]